bitfinex/quotes_BTCUSD_20250124
["timestamp","ask_amount","ask_price","bid_price","bid_amount"]
[1737689327912,0.096413,103720.0,103710.0,0.10765574]
[1737689328131,0.096413,103720.0,103710.0,0.02965574]
[1737689328513,0.096422,103710.0,103700.0,0.04979724]
[1737689328726,0.096422,103710.0,103700.0,0.02980925]
[1737689328925,0.34433917,103710.0,103700.0,0.02980925]
[1737689329125,0.34433917,103710.0,103700.0,0.0006368]
[1737689329333,0.289368,103680.0,103660.0,0.0487]
[1737689329563,0.44076617,103710.0,103670.0,0.09734729]
[1737689329564,0.289341,103690.0,103670.0,0.09734729]
[1737689329722,0.09645,103680.0,103670.0,0.12703171]
[1737689330377,0.09645,103680.0,103670.0,0.09734729]
[1737689330662,0.096459,103670.0,103660.0,0.00014865]
[1737689330889,0.096459,103670.0,103660.0,0.09749594]
[1737689331081,0.34437617,103670.0,103660.0,0.09749594]
[1737689331245,0.34437617,103670.0,103660.0,0.00014865]
[1737689332455,0.3444782,103670.0,103660.0,0.00014865]
[1737689333089,0.3830702,103670.0,103660.0,0.00014865]
[1737689333911,0.3830702,103670.0,103660.0,0.09749594]
[1737689333912,0.2866112,103670.0,103660.0,0.09749594]
[1737689334245,0.3830702,103670.0,103660.0,0.00014865]
[1737689334450,0.135051,103670.0,103660.0,0.09749594]
[1737689334582,0.038592,103670.0,103660.0,0.09749594]
[1737689334808,0.038592,103670.0,103660.0,0.12049594]
[1737689334979,0.01147492,103670.0,103660.0,0.55063744]
[1737689335184,0.385678,103720.0,103700.0,0.023]
[1737689335433,0.4408552,103720.0,103700.0,0.09734729]
[1737689335612,0.4408552,103720.0,103670.0,0.1259]
[1737689335613,0.2480192,103720.0,103670.0,0.1259]
[1737689335807,0.289329,103690.0,103680.0,0.09734729]
[1737689336062,0.09645,103680.0,103660.0,0.0001415]
[1737689336268,0.096458,103680.0,103670.0,0.09734729]
[1737689336467,0.5373892,103680.0,103670.0,0.09749594]
[1737689337055,0.3444772,103680.0,103670.0,0.09749594]
[1737689337382,0.096458,103680.0,103670.0,0.09749594]
[1737689338755,0.3444772,103680.0,103670.0,0.09749594]
[1737689339187,0.3454772,103680.0,103670.0,0.00014865]
[1737689339593,0.44282449,103680.0,103670.0,0.00014865]
[1737689339803,0.44282449,103680.0,103660.0,0.0001415]
[1737689339804,0.096459,103670.0,103660.0,0.0001415]
[1737689340798,0.19380629,103670.0,103660.0,0.0001415]
[1737689341055,0.19380629,103670.0,103660.0,5e-07]
[1737689341235,0.09734729,103670.0,103610.0,0.1253412]
[1737689341432,0.09734729,103670.0,103620.0,0.09734729]
[1737689341433,0.3445212,103630.0,103620.0,0.09734729]
[1737689342018,0.3445162,103630.0,103620.0,0.09734729]
[1737689342219,0.2480192,103630.0,103620.0,0.09734729]
[1737689342429,0.3445162,103630.0,103620.0,0.09734729]
[1737689343731,0.3445162,103630.0,103620.0,0.09834729]
[1737689344080,0.3445162,103630.0,103620.0,0.09734729]
[1737689344716,0.3445162,103630.0,103610.0,0.00028985]
[1737689344717,0.096506,103620.0,103610.0,0.00028985]
[1737689345186,0.096515,103610.0,103600.0,0.0001413]
[1737689345396,0.096515,103610.0,103600.0,0.00029011]
[1737689346020,0.4410432,103620.0,103590.0,0.0001414]
[1737689346397,0.3445442,103600.0,103590.0,0.09748869]
[1737689346595,0.096534,103590.0,103580.0,0.0003743]
[1737689346842,0.096543,103580.0,103570.0,0.0001414]
[1737689347103,0.096543,103580.0,103570.0,0.09748869]
[1737689347104,0.3445622,103580.0,103570.0,0.09748869]
[1737689347593,0.096553,103570.0,103560.0,0.0001413]
[1737689348008,0.096553,103570.0,103560.0,0.09748859]
[1737689348212,0.00014826,103570.0,103560.0,0.09748859]
[1737689348423,0.00014826,103570.0,103560.0,0.12748859]
[1737689348664,0.2480192,103580.0,103560.0,0.12748859]
[1737689348665,0.5376672,103580.0,103560.0,0.12748859]
[1737689348877,0.3445622,103580.0,103570.0,0.09734729]
[1737689349997,0.096553,103570.0,103560.0,0.0006378]
[1737689351797,0.096553,103570.0,103560.0,0.09798509]
[1737689351999,0.096553,103570.0,103560.0,0.22658509]
[1737689352206,0.6342212,103580.0,103560.0,0.22658509]
[1737689352390,0.098553,103570.0,103560.0,0.1292378]
[1737689352748,0.096553,103570.0,103560.0,0.1292378]
[1737689352976,0.8273232,103580.0,103560.0,0.22658509]
[1737689352977,0.7307702,103580.0,103560.0,0.22658509]
[1737689353210,0.5376682,103580.0,103560.0,0.22658509]
[1737689353780,0.6342162,103580.0,103560.0,0.22658509]
[1737689354025,0.096553,103570.0,103560.0,0.09798509]
[1737689354227,0.5376702,103580.0,103560.0,0.09798509]
[1737689354496,0.096535,103590.0,103570.0,0.24734729]
[1737689354697,0.289604,103590.0,103570.0,0.24734729]
[1737689354830,0.3445622,103580.0,103570.0,0.24734729]
[1737689355244,0.3445622,103580.0,103570.0,0.09734729]
[1737689356527,0.3455622,103580.0,103570.0,0.09734729]
[1737689356987,0.096553,103570.0,103560.0,0.0006378]
[1737689357191,0.096553,103570.0,103560.0,0.09748852]
[1737689357398,0.096553,103570.0,103560.0,0.00014123]
[1737689358597,1.0600562,103580.0,103520.0,0.0488]
[1737689358598,0.2876482,103580.0,103520.0,0.0488]
[1737689358793,0.096581,103540.0,103530.0,0.09734729]
[1737689359063,0.09659,103530.0,103520.0,0.00014826]
[1737689360011,0.3446092,103530.0,103520.0,0.00014826]
[1737689360495,0.44195649,103530.0,103520.0,0.00014826]
[1737689360732,0.096599,103520.0,103510.0,0.0001413]
[1737689361372,0.8276032,103530.0,103510.0,0.0001413]
[1737689361373,0.6344072,103530.0,103510.0,0.09748859]
[1737689361588,0.7309982,103530.0,103510.0,0.24748859]
[1737689361761,0.2500192,103530.0,103520.0,0.42174629]
[1737689361962,0.2500192,103530.0,103520.0,0.41174629]
[1737689362181,0.2500192,103530.0,103520.0,0.42174629]
[1737689362391,0.2480192,103530.0,103520.0,0.31514729]
[1737689362599,0.2480192,103530.0,103520.0,0.29514729]
[1737689363019,0.3446092,103530.0,103520.0,0.29514729]
[1737689363448,0.2480192,103530.0,103520.0,0.29714729]
[1737689364093,0.3446092,103530.0,103520.0,0.29714729]
[1737689364294,0.2480192,103530.0,103520.0,0.29714729]
[1737689364500,0.3446092,103530.0,103520.0,0.0498]
[1737689364713,0.3446092,103530.0,103520.0,0.14714729]
[1737689364911,0.2480192,103530.0,103520.0,0.14514729]
[1737689365120,0.2480192,103530.0,103520.0,0.14614729]
[1737689365532,0.7308992,103550.0,103530.0,0.15]
[1737689365736,0.096581,103540.0,103530.0,0.24734729]
[1737689366291,0.7309002,103550.0,103530.0,0.24734729]
[1737689366630,0.096581,103540.0,103530.0,0.09734729]
[1737689368246,0.482834,103560.0,103540.0,0.15]
[1737689368469,0.289698,103560.0,103540.0,0.24734729]
[1737689368706,0.096571,103550.0,103540.0,0.24734729]
[1737689368972,0.3445902,103550.0,103540.0,0.15]
[1737689369420,0.289759,103540.0,103520.0,0.0478]
[1737689369650,0.289752,103540.0,103530.0,0.15]
[1737689370816,0.193171,103540.0,103530.0,0.15]
[1737689371040,0.289752,103540.0,103530.0,0.15]
[1737689371240,0.289752,103540.0,103530.0,0.1501418]
[1737689372159,0.290752,103540.0,103530.0,0.1501418]
[1737689372621,0.290752,103540.0,103530.0,0.0001418]
[1737689372885,0.38809929,103540.0,103530.0,0.0001418]
[1737689373754,0.38809929,103540.0,103460.0,0.0001419]
[1737689373755,0.01,103490.0,103460.0,0.0001419]
[1737689373965,0.3446652,103470.0,103460.0,0.0001419]
[1737689374586,0.3446652,103470.0,103460.0,0.32738919]
[1737689375001,0.3446652,103470.0,103460.0,0.18635057]
[1737689375192,0.3446652,103470.0,103460.0,0.00959956]
[1737689375538,0.3546652,103470.0,103460.0,0.00959956]
[1737689376156,0.3446652,103470.0,103460.0,0.00959956]
[1737689376368,0.3466652,103470.0,103460.0,0.00063818]
[1737689377039,0.2500192,103470.0,103460.0,0.00063818]
[1737689377288,0.002,103470.0,103460.0,0.09798547]
[1737689377533,0.002,103470.0,103460.0,0.19464047]
[1737689377760,0.002,103470.0,103460.0,0.09798547]
[1737689378025,0.002,103470.0,103460.0,0.19464047]
[1737689378430,0.289893,103490.0,103460.0,0.43364347]
[1737689378641,0.096639,103480.0,103470.0,0.09734729]
[1737689379298,0.7311782,103490.0,103470.0,0.09734729]
[1737689379497,0.096637,103480.0,103470.0,0.09734729]
[1737689379904,0.5379132,103490.0,103470.0,0.09734729]
[1737689380084,0.7311782,103490.0,103470.0,0.09734729]
[1737689380310,0.4412792,103490.0,103470.0,0.09734729]
[1737689380551,0.5379092,103490.0,103470.0,0.27089329]
[1737689380809,0.09663,103490.0,103470.0,0.46418429]
[1737689381044,0.09663,103490.0,103470.0,0.17424729]
[1737689381296,0.5379082,103490.0,103470.0,0.17424729]
[1737689381794,0.097637,103480.0,103470.0,0.17424729]
[1737689382242,0.096637,103480.0,103470.0,0.17424729]
[1737689382478,0.7311782,103490.0,103470.0,0.17424729]
[1737689382712,0.096637,103480.0,103470.0,0.17424729]
[1737689383363,0.7311752,103490.0,103470.0,0.17424729]
[1737689383763,0.3446522,103490.0,103470.0,0.17424729]
[1737689383966,0.096637,103480.0,103470.0,0.17438909]
[1737689384594,0.097637,103480.0,103470.0,0.17438909]
[1737689385449,0.001,103480.0,103470.0,0.17438909]
[1737689385684,0.001,103480.0,103470.0,0.27103509]
[1737689385895,0.001,103480.0,103470.0,0.17438909]
[1737689386505,0.386532,103490.0,103470.0,0.17438909]
[1737689386506,0.3446522,103490.0,103470.0,0.17438909]
[1737689386709,0.135287,103490.0,103470.0,0.17438909]
[1737689386915,0.28989,103490.0,103470.0,0.17438909]
[1737689387270,0.096637,103480.0,103470.0,0.17438909]
[1737689387504,0.6345442,103490.0,103470.0,0.17438909]
[1737689387726,0.7311792,103490.0,103470.0,0.17438909]
[1737689387923,0.096637,103480.0,103470.0,0.17438909]
[1737689388141,0.7311752,103490.0,103470.0,0.27103509]
[1737689388361,0.7311752,103490.0,103470.0,0.17438909]
[1737689388691,0.7311742,103490.0,103470.0,0.17438909]
[1737689389070,0.097637,103480.0,103470.0,0.17438909]
[1737689389504,0.386492,103500.0,103470.0,0.27103509]
[1737689389685,0.096627,103490.0,103470.0,0.46432309]
[1737689390343,0.483118,103500.0,103470.0,0.49412345]
[1737689390578,0.096627,103490.0,103470.0,0.49412345]
[1737689390996,0.484139,103490.0,103470.0,0.20418945]
[1737689391175,0.387512,103490.0,103470.0,0.17438909]
[1737689391379,0.289891,103490.0,103470.0,0.27103509]
[1737689391595,0.289891,103490.0,103470.0,0.30085282]
[1737689391813,0.096637,103480.0,103470.0,0.20420682]
[1737689392014,0.096637,103480.0,103470.0,0.17438909]
[1737689392428,0.096637,103480.0,103470.0,0.09748909]
[1737689392844,0.096637,103480.0,103470.0,0.0001418]
[1737689393290,0.126637,103480.0,103470.0,0.0001418]
[1737689393489,0.22398429,103480.0,103470.0,0.0001418]
[1737689394722,0.22498429,103480.0,103470.0,0.0001418]
[1737689395136,0.096637,103480.0,103470.0,0.0001418]
[1737689395498,0.099637,103480.0,103470.0,0.0001418]
[1737689396984,0.09993562,103480.0,103470.0,0.0001418]
[1737689397165,0.09693562,103480.0,103470.0,0.0001418]
[1737689397385,0.09693562,103480.0,103470.0,0.09748909]
[1737689398028,0.09893562,103480.0,103470.0,0.09748909]
[1737689398238,0.1916104,103480.0,103470.0,0.0001418]
[1737689398449,0.09893562,103480.0,103470.0,0.0001418]
[1737689398805,0.19628291,103480.0,103470.0,0.0001418]
[1737689399617,0.09893562,103480.0,103470.0,0.0001418]
[1737689399817,0.10893562,103480.0,103470.0,0.0001418]
[1737689400226,0.09893562,103480.0,103470.0,0.0001418]
[1737689400654,0.09893562,103480.0,103470.0,0.09748909]
[1737689401291,0.09893562,103480.0,103470.0,0.0001418]
[1737689401905,0.3446652,103470.0,103460.0,0.0025713]
[1737689403587,0.3456652,103470.0,103460.0,0.0025713]
[1737689404717,0.3446652,103470.0,103460.0,0.0025713]
[1737689404907,0.3456652,103470.0,103460.0,0.0025713]
[1737689405513,0.54035978,103470.0,103460.0,3e-07]
[1737689405755,0.106655,103460.0,103450.0,7e-07]
[1737689405970,0.20400229,103460.0,103450.0,5e-07]
[1737689407027,0.23373128,103460.0,103450.0,5e-07]
[1737689407235,0.38537651,103460.0,103450.0,5e-07]
[1737689407448,0.25830023,103460.0,103450.0,5e-07]
[1737689407872,0.34566702,103460.0,103450.0,5e-07]
[1737689408091,0.35066702,103460.0,103450.0,5e-07]
[1737689408490,0.37566702,103460.0,103450.0,5e-07]
[1737689408956,0.36566702,103460.0,103450.0,5e-07]
[1737689409478,0.34566702,103460.0,103450.0,5e-07]
[1737689409693,0.21358462,103480.0,103460.0,0.289964]
[1737689409694,0.48350662,103480.0,103460.0,0.289964]
[1737689409922,0.09693962,103480.0,103470.0,0.09734729]
[1737689410136,0.00029862,103480.0,103470.0,0.27179329]
[1737689410383,0.00029862,103480.0,103470.0,0.31919329]
[1737689410629,0.00029862,103480.0,103470.0,0.34219329]
[1737689411143,0.00029862,103480.0,103470.0,0.22254729]
[1737689411386,0.00029862,103480.0,103470.0,0.31919329]
[1737689413565,0.00029862,103480.0,103470.0,0.34219329]
[1737689414006,0.00029862,103480.0,103470.0,0.37207515]
[1737689414229,0.00029862,103480.0,103470.0,0.34219329]
[1737689414442,0.00029862,103480.0,103470.0,0.64219329]
[1737689414667,0.00029862,103480.0,103470.0,0.67206874]
[1737689414884,0.00029862,103480.0,103470.0,0.37206874]
[1737689415114,0.00029862,103480.0,103470.0,0.37502874]
[1737689415333,0.00029862,103480.0,103470.0,0.34515329]
[1737689415769,0.00029862,103480.0,103470.0,0.32215329]
[1737689417296,0.09693562,103480.0,103470.0,0.22650729]
[1737689417916,0.09693562,103480.0,103470.0,0.22550729]
[1737689418050,0.00029862,103480.0,103470.0,0.22550729]
[1737689418259,0.00029862,103480.0,103470.0,0.34515329]
[1737689418461,0.00029862,103480.0,103470.0,0.64515329]
[1737689419634,0.00029862,103480.0,103470.0,0.34515329]
[1737689420227,0.00029862,103480.0,103470.0,0.64515329]
[1737689420441,0.00029862,103480.0,103470.0,0.34615329]
[1737689421848,0.00029862,103480.0,103470.0,0.64615329]
[1737689422059,0.289779,103530.0,103510.0,0.289823]
[1737689422273,0.289731,103550.0,103530.0,0.289766]
[1737689422498,0.038638,103550.0,103540.0,0.19392829]
[1737689422713,0.0840024,103560.0,103550.0,0.096571]
[1737689422935,0.0840024,103560.0,103550.0,0.19391829]
[1737689423144,0.0840024,103560.0,103550.0,0.34041829]
[1737689423404,0.08449838,103560.0,103550.0,0.34041829]
[1737689423633,0.00029779,103580.0,103570.0,0.096553]
[1737689423867,0.00044157,103580.0,103570.0,0.29830029]
[1737689424080,0.00044157,103580.0,103570.0,0.39830029]
[1737689424301,0.00044157,103580.0,103570.0,0.69830029]
[1737689424975,0.00044157,103580.0,103570.0,0.59830029]
[1737689425187,0.00044157,103580.0,103570.0,0.29830029]
[1737689425606,0.00044157,103580.0,103570.0,0.17874729]
[1737689425817,0.09698457,103580.0,103570.0,0.17874729]
[1737689426251,0.00029883,103590.0,103580.0,0.096543]
[1737689426472,0.00029883,103590.0,103580.0,0.88895876]
[1737689426685,0.00029883,103590.0,103580.0,0.98835876]
[1737689426904,0.00029883,103590.0,103580.0,0.33989029]
[1737689427200,0.00029883,103590.0,103580.0,0.31689029]
[1737689427396,0.00029883,103590.0,103580.0,0.31789029]
[1737689428295,0.00029883,103590.0,103580.0,0.34089029]
[1737689428714,0.00029883,103590.0,103580.0,0.33989029]
[1737689428923,0.00029883,103590.0,103580.0,0.34189029]
[1737689429336,0.00029883,103590.0,103580.0,0.33989029]
[1737689430024,0.00029883,103590.0,103580.0,0.31689029]
[1737689432620,0.00029883,103590.0,103580.0,0.22034729]
[1737689432832,0.09683283,103590.0,103580.0,0.09734729]
[1737689433048,0.09683283,103590.0,103580.0,0.09834729]
[1737689433471,0.00029883,103590.0,103580.0,0.09834729]
[1737689433718,0.00029883,103590.0,103580.0,0.19389029]
[1737689433927,0.09683283,103590.0,103580.0,0.09734729]
[1737689434157,0.00029883,103590.0,103580.0,0.21689029]
[1737689434365,0.096497,103630.0,103610.0,0.28953]
[1737689434575,0.096497,103630.0,103620.0,0.09734729]
[1737689434788,0.0966458,103630.0,103620.0,0.09734729]
[1737689435348,0.0001488,103630.0,103620.0,0.09734729]
[1737689435551,0.0966458,103630.0,103620.0,0.09734729]
[1737689435747,0.0976458,103630.0,103620.0,0.09734729]
[1737689437007,0.0976458,103630.0,103620.0,0.24734729]
[1737689438075,0.0976458,103630.0,103620.0,0.09734729]
[1737689439344,0.1941468,103630.0,103590.0,0.0489]
[1737689439547,0.289565,103610.0,103600.0,0.09734729]
[1737689439971,0.289565,103610.0,103600.0,0.24734729]
[1737689443028,0.096534,103590.0,103580.0,0.0817421]
[1737689443232,0.096534,103590.0,103580.0,0.09748939]
[1737689444233,0.097534,103590.0,103580.0,0.24748939]
[1737689444451,0.001,103590.0,103580.0,0.36703239]
[1737689444650,0.001,103590.0,103580.0,0.57660992]
[1737689444854,0.096526,103600.0,103580.0,0.60861139]
[1737689445119,0.096526,103600.0,103590.0,0.24734729]
[1737689445856,0.482604,103610.0,103590.0,0.53694729]
[1737689446264,0.482558,103620.0,103600.0,0.096524]
[1737689446474,0.09666177,103620.0,103610.0,0.24734729]
[1737689448335,0.09766177,103620.0,103610.0,0.24734729]
[1737689448570,0.00114877,103620.0,103610.0,0.34386229]
[1737689448753,0.00114877,103620.0,103610.0,0.57753982]
[1737689449019,0.00114877,103620.0,103610.0,0.95673982]
[1737689449229,0.00114877,103620.0,103610.0,0.79566229]
[1737689449885,0.00114877,103620.0,103610.0,0.95673982]
[1737689450095,0.00029842,103630.0,103620.0,0.43058353]
[1737689450308,0.00029842,103630.0,103620.0,0.52793082]
[1737689450534,0.00029842,103630.0,103620.0,0.36685329]
[1737689450748,0.00029842,103630.0,103620.0,0.34385329]
[1737689450955,0.00029862,103670.0,103660.0,0.096469]
[1737689451160,0.00079472,103670.0,103660.0,0.42101629]
[1737689451377,0.00079472,103670.0,103660.0,0.60509382]
[1737689451589,0.00079472,103670.0,103660.0,0.90509382]
[1737689451811,0.00079472,103670.0,103660.0,0.88453179]
[1737689452018,0.00029758,103680.0,103670.0,0.396459]
[1737689452219,0.00044629,103680.0,103670.0,0.76482179]
[1737689452436,0.00044629,103680.0,103670.0,0.78782179]
[1737689452659,0.00044629,103680.0,103670.0,0.32674426]
[1737689452870,0.00044629,103680.0,103670.0,0.29730629]
[1737689453298,0.00044629,103680.0,103670.0,0.67430629]
[1737689453718,0.00044629,103680.0,103670.0,0.69730629]
[1737689454154,0.00044629,103680.0,103670.0,0.69830629]
[1737689454370,0.00044629,103680.0,103670.0,0.72773604]
[1737689454779,0.00044629,103680.0,103670.0,0.72673604]
[1737689454989,0.00029736,103690.0,103680.0,0.64165]
[1737689455258,0.00029736,103690.0,103680.0,0.77842704]
[1737689455655,0.00029736,103690.0,103680.0,0.76842704]
[1737689456069,0.00029736,103690.0,103680.0,0.78446704]
[1737689457158,0.00029736,103690.0,103680.0,0.78646704]
[1737689457916,0.00029736,103690.0,103680.0,0.75703729]
[1737689458426,0.00029736,103690.0,103680.0,0.64099729]
[1737689458639,0.09673836,103690.0,103680.0,0.21954729]
[1737689458876,0.00029736,103690.0,103680.0,0.31599729]
[1737689459535,0.00029736,103690.0,103680.0,0.33899729]
[1737689459742,0.00029736,103690.0,103680.0,0.63899729]
[1737689459946,0.00029736,103690.0,103680.0,0.64099729]
[1737689460811,0.00029736,103690.0,103680.0,0.75099729]
[1737689461028,3.6e-07,103690.0,103680.0,0.78039532]
[1737689461245,0.00029904,103700.0,103690.0,0.659341]
[1737689461449,0.00029904,103700.0,103690.0,0.75668829]
[1737689461692,0.00029904,103700.0,103690.0,0.77608632]
[1737689461928,0.00029904,103700.0,103690.0,0.37608632]
[1737689462163,0.00029904,103700.0,103690.0,0.77608632]
[1737689462359,0.00029904,103700.0,103690.0,0.74668829]
[1737689462567,0.00029904,103700.0,103690.0,0.67604624]
[1737689462775,0.00029904,103700.0,103690.0,0.64668829]
[1737689462980,0.00029904,103700.0,103690.0,0.74878829]
[1737689463187,0.00029904,103700.0,103690.0,0.64668829]
[1737689464028,0.00029904,103700.0,103690.0,0.64868829]
[1737689464470,0.00029904,103700.0,103690.0,0.64668829]
[1737689464882,0.00029904,103700.0,103690.0,0.65768829]
[1737689465087,0.0157374,103720.0,103710.0,0.419422]
[1737689465293,0.01588078,103720.0,103710.0,0.51676929]
[1737689465513,0.01588078,103720.0,103710.0,0.61676929]
[1737689465720,0.01588078,103720.0,103710.0,0.69446929]
[1737689465927,0.01588078,103720.0,103710.0,0.59446929]
[1737689466543,0.01588078,103720.0,103710.0,0.29446929]
[1737689466952,0.01588078,103720.0,103710.0,0.29546929]
[1737689467580,0.01588078,103720.0,103710.0,0.21776929]
[1737689467790,0.01588078,103720.0,103710.0,0.19476929]
[1737689468018,0.11229378,103720.0,103710.0,0.09834729]
[1737689468428,0.01588078,103720.0,103710.0,0.19476929]
[1737689468846,0.01588078,103720.0,103710.0,0.09834729]
[1737689469028,0.01588078,103720.0,103710.0,0.19476929]
[1737689469245,0.01588078,103720.0,103710.0,0.09834729]
[1737689469246,0.11229378,103720.0,103710.0,0.09834729]
[1737689469455,0.01588078,103720.0,103710.0,0.19476929]
[1737689469662,0.01588078,103720.0,103710.0,0.09734729]
[1737689469877,0.11229378,103720.0,103710.0,0.09734729]
[1737689470074,0.01588078,103720.0,103710.0,0.19376929]
[1737689470286,0.11329378,103720.0,103710.0,0.09734729]
[1737689470718,0.11229378,103720.0,103710.0,0.09734729]
[1737689471357,0.192879,103700.0,103680.0,10.0]
[1737689471564,0.385758,103700.0,103680.0,10.09734729]
[1737689471800,0.096441,103690.0,103680.0,10.09734729]
[1737689473250,0.096441,103690.0,103680.0,10.19379729]
[1737689473453,0.675068,103700.0,103680.0,10.19379729]
[1737689473653,0.097441,103690.0,103680.0,10.09645]
[1737689473861,0.097441,103690.0,103680.0,10.09734729]
[1737689474597,0.096441,103690.0,103680.0,10.09734729]
[1737689474814,0.096441,103690.0,103680.0,10.59734729]
[1737689475499,0.57812331,103690.0,103680.0,10.45830292]
[1737689475730,0.56812331,103690.0,103680.0,10.3660584]
[1737689475943,0.47077602,103690.0,103680.0,10.3660584]
[1737689476801,0.47177602,103690.0,103680.0,10.3660584]
[1737689477274,0.47077602,103690.0,103680.0,10.3660584]
[1737689477488,0.57812331,103690.0,103680.0,10.3660584]
[1737689477708,0.58012331,103690.0,103680.0,10.3274784]
[1737689478132,0.6144706,103690.0,103680.0,10.0950584]
[1737689478349,0.5871706,103690.0,103680.0,9.71788576]
[1737689478557,0.5532706,103690.0,103680.0,9.63617452]
[1737689478765,0.56415279,103690.0,103680.0,9.63617452]
[1737689478988,0.58515279,103690.0,103680.0,9.63617452]
[1737689479209,0.58915279,103690.0,103680.0,9.41115346]
[1737689479469,0.58915279,103690.0,103680.0,9.37143846]
[1737689479694,0.4878055,103690.0,103680.0,9.37143846]
[1737689479908,0.4648055,103690.0,103680.0,9.37143846]
[1737689480120,0.4718055,103690.0,103680.0,9.37243846]
[1737689481005,0.4718055,103690.0,103680.0,9.31456846]
[1737689481216,0.4718055,103690.0,103680.0,8.91332757]
[1737689481426,0.4948055,103690.0,103680.0,8.91332757]
[1737689481553,0.4948055,103690.0,103680.0,8.81031268]
[1737689482167,0.4948055,103690.0,103680.0,8.61084779]
[1737689482847,0.4948055,103690.0,103680.0,8.54610402]
[1737689483063,0.59215279,103690.0,103680.0,8.37843691]
[1737689483277,0.59215279,103690.0,103680.0,8.2185535]
[1737689483707,0.59215279,103690.0,103680.0,8.1117333]
[1737689483933,0.79410029,103690.0,103680.0,6.30047691]
[1737689484158,0.88570431,103690.0,103680.0,5.68681586]
[1737689484379,1.55987569,103690.0,103680.0,5.38153026]
[1737689484587,1.45233279,103690.0,103680.0,5.08300374]
[1737689484822,0.69407279,103690.0,103680.0,4.97998885]
[1737689485251,0.69407279,103690.0,103680.0,4.88453885]
[1737689485252,0.70307279,103690.0,103680.0,4.88453885]
[1737689485457,0.80517279,103690.0,103680.0,4.86114885]
[1737689485660,0.79617279,103690.0,103680.0,4.86014885]
[1737689485882,0.69407279,103690.0,103680.0,4.83537611]
[1737689486100,0.70307279,103690.0,103680.0,4.81708611]
[1737689486306,0.70307279,103690.0,103680.0,4.73992611]
[1737689486516,0.70307279,103690.0,103680.0,4.67087753]
[1737689486738,0.116525,103600.0,103590.0,0.0001421]
[1737689487011,0.44150731,103600.0,103590.0,0.0001421]
[1737689487436,0.096525,103600.0,103590.0,0.0001421]
[1737689487646,0.116525,103600.0,103590.0,0.0001421]
[1737689488058,0.096525,103600.0,103590.0,0.0006382]
[1737689488496,0.116525,103600.0,103590.0,0.0006382]
[1737689489115,0.096525,103600.0,103590.0,0.0006382]
[1737689489327,0.097525,103600.0,103590.0,0.0006382]
[1737689489536,0.001,103600.0,103590.0,0.09798549]
[1737689489744,0.001,103600.0,103590.0,0.14934075]
[1737689490159,0.482553,103620.0,103590.0,0.43894075]
[1737689490371,0.289526,103620.0,103600.0,0.09734729]
[1737689490573,0.386036,103620.0,103600.0,0.09734729]
[1737689490781,0.482549,103620.0,103600.0,0.11228137]
[1737689491215,0.096515,103610.0,103600.0,0.11228137]
[1737689491432,0.386036,103620.0,103600.0,0.11228137]
[1737689491639,0.096514,103620.0,103600.0,0.20880337]
[1737689491850,0.28951,103630.0,103610.0,0.222215]
[1737689492080,0.28951,103630.0,103610.0,0.27580183]
[1737689492290,0.482413,103650.0,103620.0,0.38686029]
[1737689492495,0.096488,103640.0,103620.0,0.19384829]
[1737689492714,0.096488,103640.0,103620.0,0.38686029]
[1737689492928,0.289467,103640.0,103620.0,0.19248247]
[1737689493156,0.289474,103640.0,103620.0,0.19248247]
[1737689493361,0.482459,103640.0,103620.0,0.19248247]
[1737689493555,0.096497,103630.0,103620.0,0.19248247]
[1737689493767,0.289414,103660.0,103620.0,0.57848047]
[1737689493977,0.096478,103650.0,103630.0,0.172294]
[1737689494179,0.289436,103650.0,103640.0,0.09734729]
[1737689494390,0.096478,103650.0,103630.0,0.13157725]
[1737689494645,0.096487,103640.0,103630.0,0.17314729]
[1737689494844,0.096487,103640.0,103630.0,0.0758]
[1737689495253,0.096487,103640.0,103630.0,0.0762961]
[1737689495457,0.289443,103650.0,103630.0,0.09784339]
[1737689495672,0.289443,103650.0,103640.0,0.09734729]
[1737689496736,0.482364,103660.0,103640.0,0.09734729]
[1737689496916,0.385888,103660.0,103640.0,0.09734729]
[1737689497094,0.096478,103650.0,103640.0,0.09734729]
[1737689497886,0.096487,103640.0,103630.0,0.04688184]
[1737689498090,0.096487,103640.0,103630.0,0.09784339]
[1737689498316,0.482409,103650.0,103630.0,0.09784339]
[1737689498721,0.28942,103660.0,103630.0,0.58032039]
[1737689498930,0.28942,103660.0,103640.0,0.14674729]
[1737689499132,0.096478,103650.0,103640.0,0.20971933]
[1737689499304,0.096478,103650.0,103640.0,0.14674729]
[1737689499502,0.289419,103660.0,103640.0,0.24323429]
[1737689499914,0.385897,103660.0,103640.0,0.14674729]
[1737689500138,0.482372,103660.0,103640.0,0.14674729]
[1737689500739,0.096478,103650.0,103640.0,0.14674729]
[1737689500935,0.096478,103650.0,103640.0,0.0494]
[1737689501899,0.096478,103650.0,103640.0,0.05438961]
[1737689502116,0.482371,103660.0,103640.0,0.1517369]
[1737689502344,0.096469,103660.0,103640.0,0.2482159]
[1737689502554,0.289408,103660.0,103640.0,0.1517369]
[1737689502975,0.289408,103660.0,103640.0,0.2482229]
[1737689503226,0.289408,103660.0,103640.0,0.1517369]
[1737689504118,0.28970642,103660.0,103640.0,0.1517369]
[1737689504550,0.28970642,103660.0,103640.0,0.2482239]
[1737689505348,0.00029842,103660.0,103650.0,0.27512529]
[1737689505551,0.00029842,103660.0,103650.0,0.37143248]
[1737689506595,0.00029842,103660.0,103650.0,0.37343248]
[1737689506912,0.00029842,103660.0,103650.0,0.18064729]
[1737689507121,0.00029842,103660.0,103650.0,0.27712529]
[1737689507562,0.00029842,103660.0,103650.0,0.19964882]
[1737689507775,0.4696401,103670.0,103650.0,0.19964882]
[1737689507989,0.289358,103680.0,103660.0,0.096466]
[1737689508195,0.289358,103680.0,103660.0,0.38675129]
[1737689508755,0.289358,103680.0,103660.0,0.19381329]
[1737689508981,0.289358,103680.0,103660.0,0.38675129]
[1737689509158,0.289358,103680.0,103660.0,0.19381329]
[1737689509374,0.289358,103680.0,103660.0,0.252254]
[1737689509714,0.289358,103680.0,103660.0,0.253254]
[1737689509920,0.482269,103680.0,103660.0,0.156788]
[1737689510147,0.289358,103680.0,103660.0,0.156788]
[1737689510357,0.289358,103680.0,103660.0,0.001]
[1737689510358,0.096459,103670.0,103660.0,0.001]
[1737689510979,0.38607821,103690.0,103660.0,0.19481029]
[1737689511202,0.096452,103680.0,103660.0,0.19481029]
[1737689511380,0.289357,103680.0,103660.0,0.19381029]
[1737689511583,0.385818,103680.0,103670.0,0.15]
[1737689511783,0.289355,103680.0,103670.0,0.15]
[1737689512028,0.40670229,103680.0,103670.0,0.15]